bitfinex/quotes_SOLUSD_20250107
["timestamp","ask_amount","ask_price","bid_price","bid_amount"]
[1736279176235,7.7091544,205.1,205.02,22.8389403]
[1736279176437,7.7091544,205.1,205.04,22.8389403]
[1736279176840,0.12549,205.1,205.04,22.8389403]
[1736279177049,0.12549,205.1,205.06,22.8389403]
[1736279177237,0.12549,205.1,205.07,22.8389403]
[1736279177436,20.12549,205.1,205.01,23.57025517]
[1736279177756,20.12549,205.1,205.01,22.8389403]
[1736279178748,27.7091544,205.1,205.01,22.8389403]
[1736279179137,0.12549,205.08,205.01,22.8389403]
[1736279179839,0.12549,205.05,204.96,7.7011]
[1736279180042,0.12549,205.05,204.96,1.5425]
[1736279180641,0.12549,205.05,204.96,24.3814403]
[1736279180843,0.12549,205.05,204.98,22.8389403]
[1736279181030,7.7091544,205.05,204.95,22.8389403]
[1736279181340,0.12549,205.01,204.94,22.8389403]
[1736279181936,0.12549,205.01,204.96,22.8389403]
[1736279182142,0.12549,205.01,204.92,23.776884]
[1736279182143,7.5836644,205.05,204.99,22.8389403]
[1736279182651,7.5836644,205.08,204.99,22.8389403]
[1736279182858,0.12549,205.04,204.98,22.8389403]
[1736279183430,0.12549,205.05,204.98,22.8389403]
[1736279183631,0.12549,205.05,204.96,22.8389403]
[1736279184661,0.12549,205.05,204.95,22.8389403]
[1736279184970,0.12549,205.05,204.96,22.8389403]
[1736279185177,0.12549,205.03,204.97,22.8389403]
[1736279186745,0.12549,205.03,204.98,22.8389403]
[1736279187158,0.12549,205.04,204.98,22.8389403]
[1736279187466,0.12549,205.04,205.0,22.8389403]
[1736279187667,0.12549,205.04,204.95,22.8389403]
[1736279187966,20.12549,205.05,204.94,22.8389403]
[1736279188465,0.12549,205.03,204.91,30.3710403]
[1736279188647,0.12549,205.0,204.91,30.3710403]
[1736279188843,0.12549,205.0,204.92,22.8389403]
[1736279189145,0.12549,205.0,204.91,30.3710403]
[1736279189338,0.12549,205.0,204.92,22.8389403]
[1736279189747,0.12549,205.02,204.91,30.3710403]
[1736279190348,0.12549,204.98,204.89,22.8389403]
[1736279190552,0.12549,204.98,204.86,8.0276]
[1736279190553,0.12549,204.98,204.88,22.8389403]
[1736279190942,0.12549,204.98,204.86,8.0276]
[1736279190943,0.12549,204.98,204.89,22.8389403]
[1736279191140,0.12549,204.98,204.88,22.8389403]
[1736279191363,0.12549,204.94,204.88,22.8389403]
[1736279191570,0.12549,204.94,204.89,22.8389403]
[1736279192064,0.12549,204.97,204.89,22.8389403]
[1736279192246,0.12549,204.97,204.88,22.8389403]
[1736279192449,43.902374,204.99,204.86,30.8665403]
[1736279192749,0.12549,204.97,204.82,22.8389403]
[1736279193076,0.12549,204.97,204.85,22.8389403]
[1736279193275,0.12549,204.97,204.89,22.8389403]
[1736279193462,0.12549,204.97,204.9,22.8389403]
[1736279193766,0.12549,204.98,204.9,22.8389403]
[1736279193940,0.12549,204.98,204.92,22.8389403]
[1736279194147,0.12549,204.98,204.88,22.8389403]
[1736279194379,27.5836644,204.99,204.83,0.73181299]
[1736279194380,20.0,204.99,204.89,22.8389403]
[1736279194543,20.12549,204.99,204.93,22.8389403]
[1736279194748,0.12549,204.99,204.94,22.8389403]
[1736279195168,0.12549,205.0,204.94,22.8389403]
[1736279195601,0.12549,205.0,204.93,22.8389403]
[1736279195741,0.12549,205.0,204.91,22.8389403]
[1736279195947,0.12549,205.0,204.93,22.8389403]
[1736279196353,0.12549,204.98,204.92,22.8389403]
[1736279196572,0.12549,204.98,204.91,22.8389403]
[1736279196878,0.12549,204.98,204.9,22.8389403]
[1736279197082,0.12549,204.98,204.91,22.8389403]
[1736279197284,0.12549,204.98,204.92,22.8389403]
[1736279197463,0.12549,204.98,204.93,22.8389403]
[1736279197989,1.3733,205.03,204.94,22.8389403]
[1736279198164,43.902374,205.02,204.9,22.8389403]
[1736279198359,43.902374,205.02,204.89,22.8389403]
[1736279198563,0.12549,204.98,204.87,22.8389403]
[1736279198762,20.12549,204.98,204.87,22.8389403]
[1736279199081,0.12549,204.96,204.9,22.8389403]
[1736279199250,0.12549,204.96,204.93,22.8389403]
[1736279199484,20.12549,204.99,204.92,22.8389403]
[1736279199908,20.12549,204.99,204.89,22.8389403]
[1736279200215,20.12549,204.99,204.91,22.8389403]
[1736279200424,20.12549,204.99,204.87,0.73190608]
[1736279200425,20.12549,204.99,204.9,22.8389403]
[1736279200823,20.12549,204.99,204.88,22.8389403]
[1736279202009,20.0,204.99,204.83,22.8389403]
[1736279202224,20.0,204.99,204.84,22.8389403]
[1736279202426,20.0,204.99,204.85,22.8389403]
[1736279202791,20.0,204.95,204.85,22.8389403]
[1736279203320,20.0,204.91,204.83,22.8389403]
[1736279203851,20.0,204.91,204.82,22.8389403]
[1736279204145,7.5836644,204.98,204.84,22.8389403]
[1736279204317,7.5836644,204.97,204.84,22.8389403]
[1736279204517,20.0,204.93,204.84,22.8389403]
[1736279204712,20.0,204.93,204.86,22.8389403]
[1736279204918,20.0,204.93,204.85,22.8389403]
[1736279205313,20.0,204.93,204.83,22.8389403]
[1736279206855,20.0,204.93,204.85,22.8389403]
[1736279207035,7.5836644,204.96,204.9,22.8389403]
[1736279207536,20.0,204.95,204.85,22.8389403]
[1736279209032,20.0,204.95,204.84,22.8389403]
[1736279209931,20.0,204.95,204.86,22.8389403]
[1736279210335,20.0,204.91,204.84,22.8389403]
[1736279210643,20.0,204.91,204.8,22.8389403]
[1736279211041,20.0,204.91,204.81,22.8389403]
[1736279211526,20.0,204.91,204.8,22.8389403]
[1736279212049,20.0,204.91,204.82,22.8389403]
[1736279212238,20.0,204.91,204.81,22.8389403]
[1736279212451,20.0,204.91,204.8,22.8389403]
[1736279212759,20.0,204.91,204.81,22.8389403]
[1736279213126,20.0,204.91,204.79,22.8389403]
[1736279213319,20.0,204.87,204.76,32.52588944]
[1736279213522,20.0,204.87,204.77,22.8389403]
[1736279213963,20.0,204.87,204.79,22.8389403]
[1736279214125,20.0,204.87,204.81,22.8389403]
[1736279214632,3.62,204.9,204.84,22.8389403]
[1736279214840,1.3733,204.93,204.84,22.8389403]
[1736279215043,21.3733,204.93,204.85,22.8389403]
[1736279215454,21.3733,204.93,204.83,22.8389403]
[1736279215840,1.3733,204.93,204.82,22.8389403]
[1736279216234,20.0,204.89,204.79,22.8389403]
[1736279216537,20.0,204.89,204.8,22.8389403]
[1736279216850,20.0,204.85,204.79,22.8389403]
[1736279217048,20.0,204.85,204.77,22.8389403]
[1736279217454,20.0,204.85,204.76,24.41218944]
[1736279217834,20.0,204.85,204.76,1.57324914]
[1736279218235,20.0,204.85,204.76,24.41218944]
[1736279219230,20.0,204.85,204.77,22.8389403]
[1736279220349,20.0,204.81,204.76,1.57324914]
[1736279220938,3.4,204.89,204.77,22.8389403]
[1736279221258,20.0,204.85,204.78,22.8389403]
[1736279221464,20.0,204.85,204.76,22.8389403]
[1736279221756,20.0,204.85,204.77,22.8389403]
[1736279221927,1.92239108,204.91,204.84,22.8389403]
[1736279221928,7.5836644,204.91,204.84,22.8389403]
[1736279222129,7.5836644,204.91,204.87,22.8389403]
[1736279222348,7.5836644,204.91,204.8,23.57109807]
[1736279222349,7.5836644,204.91,204.89,22.8389403]
[1736279222753,7.5836644,204.91,204.86,22.8389403]
[1736279222945,7.5836644,204.91,204.85,22.8389403]
[1736279223149,1.3733,204.97,204.85,22.8389403]
[1736279223351,20.0,204.92,204.83,22.8389403]
[1736279223737,20.0,204.92,204.82,22.8389403]
[1736279224232,20.0,204.92,204.81,22.8389403]
[1736279224436,20.0,204.88,204.8,22.8389403]
[1736279224638,20.0,204.88,204.78,22.8389403]
[1736279226039,20.0,204.88,204.77,24.5009403]
[1736279226242,20.0,204.88,204.77,22.8389403]
[1736279226443,20.0,204.84,204.77,22.8389403]
[1736279227664,20.0,204.84,204.76,22.8389403]
[1736279227959,20.0,204.84,204.75,24.41226628]
[1736279228650,20.0,204.84,204.76,22.8389403]
[1736279230368,20.0,204.84,204.75,24.41226628]
[1736279230552,20.0,204.84,204.75,1.57332598]
[1736279231542,20.0,204.8,204.75,1.57332598]
[1736279232747,8.9569644,204.86,204.76,14.32486761]
[1736279233069,8.9569644,204.86,204.78,14.32486761]
[1736279233266,20.0,204.83,204.71,24.50923878]
[1736279233467,20.0,204.83,204.78,22.91158395]
[1736279233987,20.0,204.85,204.8,22.91158395]
[1736279234263,1.3733,204.91,204.81,22.91158395]
[1736279234451,1.3733,204.91,204.82,22.91158395]
[1736279234774,7.5836644,204.92,204.83,22.91158395]
[1736279234970,20.0,204.89,204.82,22.91158395]
[1736279235375,23.776884,204.89,204.78,22.91158395]
[1736279235583,43.776884,204.89,204.77,30.60348395]
[1736279235785,43.776884,204.89,204.76,22.91158395]
[1736279235983,43.776884,204.89,204.77,22.91158395]
[1736279236461,43.776884,204.89,204.76,22.91158395]
[1736279236666,43.776884,204.89,204.73,3.4]
[1736279236667,43.776884,204.89,204.75,22.91158395]
[1736279237057,43.776884,204.89,204.73,22.91158395]
[1736279237242,1.3733,204.88,204.72,1.57355654]
[1736279237441,8.9569644,204.88,204.72,1.57355654]
[1736279237663,20.0,204.84,204.72,1.57355654]
[1736279237969,20.0,204.79,204.72,1.57355654]
[1736279239175,20.0,204.79,204.68,22.91158395]
[1736279239359,20.0,204.79,204.7,22.91158395]
[1736279239546,20.0,204.79,204.72,22.91158395]
[1736279240158,20.0,204.79,204.71,22.91158395]
[1736279240355,20.0,204.79,204.7,22.91158395]
[1736279241873,20.0,204.79,204.68,22.91158395]
[1736279242075,23.776884,204.78,204.67,6.1428]
[1736279242389,20.0,204.75,204.67,6.1428]
[1736279242562,20.0,204.75,204.66,1.602]
[1736279243165,20.0,204.75,204.64,24.48575564]
[1736279243775,10.9836644,204.83,204.64,1.57417169]
[1736279243776,23.776884,204.74,204.64,1.57417169]
[1736279243971,20.0,204.71,204.64,1.57417169]
[1736279244177,20.0,204.71,204.61,1.619]
[1736279244360,20.0,204.71,204.59,22.91158395]
[1736279244560,20.0,204.71,204.6,22.91158395]
[1736279245073,20.0,204.71,204.61,22.91158395]
[1736279245269,20.0,204.72,204.63,22.91158395]
[1736279245475,20.0,204.72,204.61,22.91158395]
[1736279245678,20.0,204.72,204.6,22.91158395]
[1736279245880,20.0,204.72,204.61,22.91158395]
[1736279246069,20.0,204.71,204.61,22.91158395]
[1736279246272,20.0,204.71,204.59,22.91158395]
[1736279246479,20.0,204.7,204.57,29.55548395]
[1736279246888,20.0,204.7,204.6,22.91158395]
[1736279247858,20.0,204.7,204.62,22.91158395]
[1736279248081,20.0,204.7,204.64,22.91158395]
[1736279248480,20.0,204.71,204.66,22.91158395]
[1736279248670,20.0,204.71,204.67,22.91158395]
[1736279248985,20.0,204.74,204.68,22.91158395]
[1736279249367,20.0,204.74,204.69,22.91158395]
[1736279249568,20.0,204.76,204.68,22.91158395]
[1736279249990,3.22,204.79,204.71,22.91158395]
[1736279250804,20.0,204.78,204.72,22.91158395]
[1736279251284,23.776884,204.81,204.72,22.91158395]
[1736279251497,23.776884,204.81,204.7,22.91158395]
[1736279251672,20.0,204.78,204.69,22.91158395]
[1736279251864,20.0,204.78,204.7,22.91158395]
[1736279252484,20.0,204.78,204.66,6.6128]
[1736279252485,20.0,204.78,204.69,22.91158395]
[1736279252692,20.0,204.78,204.7,22.91158395]
[1736279252878,20.0,204.78,204.69,22.91158395]
[1736279253193,20.0,204.78,204.66,29.52438395]
[1736279253692,20.0,204.78,204.68,22.91158395]
[1736279253889,20.0,204.78,204.67,22.91158395]
[1736279254095,20.0,204.74,204.66,29.52438395]
[1736279254399,20.0,204.74,204.66,22.91158395]
[1736279254587,20.0,204.74,204.63,22.91158395]
[1736279255091,20.0,204.74,204.62,22.91158395]
[1736279255398,20.0,204.7,204.61,6.0149]
[1736279255689,20.0,204.7,204.59,24.47188395]
[1736279255895,20.0,204.7,204.6,22.91158395]
[1736279256098,20.0,204.7,204.59,24.47188395]
[1736279256804,20.0,204.7,204.59,1.5603]
[1736279257109,20.0,204.66,204.56,6.0544]
[1736279257605,20.0,204.66,204.58,22.91158395]
[1736279257778,20.0,204.66,204.59,22.91158395]
[1736279257983,20.0,204.7,204.61,22.91158395]
[1736279258695,20.0,204.7,204.6,22.91158395]
[1736279259188,20.0,204.67,204.61,22.91158395]
[1736279259412,20.0,204.67,204.6,22.91158395]
[1736279259978,20.0,204.67,204.56,6.0544]
[1736279260179,20.0,204.67,204.59,22.91158395]
[1736279260484,20.0,204.67,204.58,22.91158395]
[1736279261098,20.0,204.67,204.57,22.91158395]
[1736279261291,20.0,204.67,204.54,1.5305]
[1736279261292,20.0,204.67,204.58,22.91158395]
[1736279262187,20.0,204.67,204.54,1.5305]
[1736279262188,23.902374,204.66,204.57,22.91158395]
[1736279262387,23.902374,204.66,204.54,1.5305]
[1736279262388,0.12549,204.62,204.54,1.5305]
[1736279262576,0.12549,204.62,204.53,22.91158395]
[1736279262771,23.902374,204.62,204.52,22.91158395]
[1736279262978,0.12549,204.58,204.51,24.48585803]
[1736279264199,0.12549,204.58,204.51,1.57427408]
[1736279264501,20.0,204.55,204.51,1.57427408]
[1736279264812,0.12549,204.54,204.46,22.91158395]
[1736279264976,0.12549,204.54,204.48,22.91158395]
[1736279265371,0.12549,204.54,204.47,22.91158395]
[1736279265694,0.12549,204.54,204.5,22.91158395]
[1736279265875,0.12549,204.54,204.51,22.91158395]
[1736279266201,20.0,204.61,204.52,22.91158395]
[1736279266803,0.12549,204.56,204.51,22.91158395]
[1736279267379,0.12549,204.56,204.49,22.91158395]
[1736279267905,0.12549,204.52,204.47,22.91158395]
[1736279268292,0.12549,204.52,204.45,29.48258395]
[1736279268499,0.12549,204.52,204.45,22.91158395]
[1736279269085,0.12549,204.52,204.46,22.91158395]
[1736279270103,7.5836644,204.62,204.51,22.91158395]
[1736279270304,20.0,204.59,204.51,22.91158395]
[1736279270510,0.12549,204.54,204.5,22.91158395]
[1736279271402,0.12549,204.54,204.48,22.91158395]
[1736279272109,0.12549,204.54,204.49,22.91158395]
[1736279272604,0.12549,204.54,204.5,22.91158395]
[1736279273007,0.12549,204.54,204.51,22.91158395]
[1736279273205,3.22,204.62,204.52,22.91158395]
[1736279273389,3.22,204.62,204.53,22.91158395]
[1736279273595,3.22,204.62,204.54,22.91158395]
[1736279274096,0.12549,204.57,204.54,22.91158395]
[1736279274431,0.12549,204.57,204.56,22.91158395]
[1736279274711,0.12549,204.6,204.5,29.07068395]
[1736279274890,0.12549,204.6,204.57,22.91158395]
[1736279275087,3.22,204.65,204.58,22.91158395]
[1736279275510,0.12549,204.64,204.57,22.91158395]
[1736279275711,3.22,204.65,204.6,22.91158395]
[1736279276025,0.12549,204.64,204.58,22.91158395]
[1736279276310,0.12549,204.64,204.6,22.91158395]
[1736279276516,1.3733,204.7,204.57,22.91158395]
[1736279276814,0.12549,204.61,204.57,22.91158395]
[1736279277408,0.12549,204.63,204.55,22.91158395]
[1736279277616,0.12549,204.59,204.52,22.91158395]
[1736279278813,0.12549,204.59,204.51,24.56598395]
[1736279279307,0.12549,204.59,204.52,22.91158395]
[1736279279514,0.12549,204.59,204.5,29.07068395]
[1736279280019,0.12549,204.59,204.51,22.91158395]
[1736279280189,0.12549,204.59,204.52,22.91158395]
[1736279280389,0.12549,204.59,204.51,22.91158395]
[1736279280801,10.0,204.72,204.57,22.91158395]
[1736279281007,10.0,204.72,204.56,22.91158395]
[1736279281213,23.902374,204.68,204.54,22.91158395]
[1736279281419,33.902374,204.68,204.52,22.91158395]
[1736279282114,0.12549,204.64,204.5,29.07068395]
[1736279282616,0.12549,204.64,204.51,22.91158395]
[1736279283115,0.12549,204.64,204.52,22.91158395]
[1736279283314,0.12549,204.64,204.5,22.91158395]
[1736279283492,20.0,204.61,204.49,22.91158395]
[1736279283693,23.902374,204.6,204.49,22.91158395]
[1736279283910,0.12549,204.56,204.5,22.91158395]
[1736279284217,0.12549,204.56,204.49,22.91158395]
[1736279284447,0.12549,204.56,204.5,22.91158395]
[1736279284626,0.12549,204.56,204.51,22.91158395]
[1736279284833,68.45391478,204.71,204.55,22.91158395]
[1736279285126,3.22,204.65,204.56,22.91158395]
[1736279285298,3.22,204.67,204.58,22.91158395]
[1736279285631,0.12549,204.6,204.53,22.91158395]
[1736279285845,0.12549,204.6,204.51,22.91158395]
[1736279286226,43.902374,204.66,204.51,22.91158395]
[1736279286415,48.902374,204.66,204.49,22.91158395]
[1736279286610,48.902374,204.66,204.48,22.91158395]
[1736279287617,48.902374,204.66,204.49,22.91158395]
[1736279287834,48.902374,204.66,204.5,22.91158395]
[1736279288150,56.4860384,204.66,204.5,22.91158395]
[1736279288848,56.4860384,204.66,204.51,22.91158395]
[1736279289349,27.7091544,204.66,204.55,22.91158395]
[1736279289513,27.7091544,204.66,204.54,22.91158395]
[1736279289711,0.12549,204.61,204.54,22.91158395]
[1736279290031,0.12549,204.61,204.52,22.91158395]
[1736279290211,23.776884,204.65,204.52,22.91158395]
[1736279290535,18.38732881,204.68,204.51,22.91158395]
[1736279290536,0.12549,204.57,204.51,22.91158395]
[1736279290712,0.12549,204.57,204.5,22.91158395]
[1736279291023,0.12549,204.57,204.51,22.91158395]
[1736279291229,0.12549,204.57,204.5,22.91158395]
[1736279291437,0.12549,204.57,204.51,22.91158395]
[1736279291740,0.12549,204.57,204.5,22.91158395]
[1736279292423,0.12549,204.57,204.52,22.91158395]
[1736279292940,0.12549,204.57,204.5,22.91158395]
[1736279293756,0.12549,204.57,204.52,22.91158395]
[1736279293941,0.12549,204.57,204.51,22.91158395]
[1736279294424,0.12549,204.57,204.47,0.7333145]
[1736279294626,0.12549,204.57,204.5,22.91158395]
[1736279295270,0.12549,204.57,204.48,22.91158395]
[1736279295567,0.12549,204.53,204.46,24.41618395]
[1736279295764,0.12549,204.53,204.46,1.5046]
[1736279296062,0.12549,204.53,204.43,22.91158395]
[1736279296355,0.12549,204.49,204.36,1.22174941]
[1736279296527,0.12549,204.45,204.36,1.22174941]
[1736279296857,0.12549,204.41,204.37,22.91158395]
[1736279297242,0.12549,204.41,204.36,22.91158395]
[1736279297441,4.46,204.48,204.37,22.91158395]
[1736279297442,20.0,204.46,204.37,22.91158395]
[1736279297766,0.12549,204.45,204.38,22.91158395]
[1736279297930,0.12549,204.45,204.39,22.91158395]
[1736279299365,0.12549,204.45,204.41,22.91158395]
[1736279299659,4.46,204.48,204.43,22.91158395]
[1736279300039,0.12549,204.47,204.42,22.91158395]
[1736279300267,0.12549,204.47,204.41,22.91158395]
[1736279300465,0.12549,204.47,204.4,22.91158395]
[1736279300635,0.12549,204.47,204.41,22.91158395]
[1736279301362,0.12549,204.47,204.42,22.91158395]
[1736279301566,0.12549,204.47,204.41,22.91158395]
[1736279301774,0.12549,204.43,204.38,22.91158395]
[1736279302858,0.12549,204.43,204.35,22.91158395]
[1736279303937,0.12549,204.43,204.34,22.91158395]
[1736279304162,20.0,204.36,204.3,22.91158395]
[1736279304437,0.12549,204.35,204.26,1.6005]
[1736279304636,0.12549,204.31,204.24,22.91158395]
[1736279304848,0.12549,204.31,204.23,22.91158395]
[1736279305037,0.12549,204.31,204.24,22.91158395]
[1736279305382,0.12549,204.27,204.2,23.81997685]
[1736279305539,0.12549,204.27,204.18,30.85738395]
[1736279306373,23.902374,204.27,204.18,30.85738395]
[1736279306969,20.0,204.33,204.19,22.91158395]
[1736279307168,20.0,204.33,204.18,30.85738395]
[1736279307456,0.12549,204.24,204.18,30.85738395]
[1736279308179,23.902374,204.29,204.18,30.85738395]
[1736279308374,0.12549,204.25,204.18,30.85738395]
[1736279308879,0.12549,204.25,204.2,22.91158395]
[1736279309078,21.3733,204.34,204.23,22.91158395]
[1736279309256,21.3733,204.34,204.22,22.91158395]
[1736279309639,0.12549,204.29,204.22,22.91158395]
[1736279309868,0.12549,204.29,204.23,22.91158395]
[1736279310354,20.0,204.38,204.24,22.91158395]
[1736279310669,0.12549,204.31,204.25,22.91158395]
[1736279310854,0.12549,204.31,204.26,22.91158395]
[1736279311059,0.12549,204.31,204.27,22.91158395]
[1736279311365,1.3733,204.39,204.29,22.91158395]
[1736279311957,0.12549,204.38,204.29,22.91158395]
[1736279312283,0.12549,204.36,204.29,22.41158395]
[1736279312770,43.902374,204.36,204.28,22.91158395]
[1736279312967,0.12549,204.32,204.27,22.91158395]
[1736279313269,0.12549,204.32,204.24,22.91158395]
[1736279314479,0.12549,204.32,204.25,22.91158395]
[1736279314649,1.3733,204.39,204.28,22.91158395]
[1736279314854,1.3733,204.39,204.29,22.91158395]
[1736279315053,23.902374,204.38,204.23,22.91158395]
[1736279315258,0.12549,204.34,204.21,22.91158395]
[1736279315458,0.12549,204.34,204.23,22.91158395]
[1736279315650,0.12549,204.34,204.22,22.91158395]
[1736279317563,0.12549,204.34,204.2,22.91158395]
[1736279319148,20.0,204.27,204.2,22.91158395]
[1736279319349,4.24,204.35,204.25,22.91158395]
[1736279319549,23.902374,204.34,204.24,22.91158395]
[1736279319877,0.12549,204.3,204.23,22.91158395]
[1736279320375,0.12549,204.3,204.21,22.91158395]
[1736279320674,0.12549,204.3,204.2,22.91158395]
[1736279321349,0.12549,204.26,204.19,22.91158395]
[1736279321551,23.776884,204.19,204.08,0.90892704]
[1736279321847,20.0,204.1,203.97,22.91158395]
[1736279322063,20.0,204.06,203.96,1.591]
[1736279322379,20.0,204.06,203.94,6.2082]
[1736279323074,1.3733,204.13,203.97,22.91158395]
[1736279323244,1.3733,204.13,203.94,6.94341503]
[1736279323448,20.0,204.07,203.96,37.51883237]
[1736279324251,1.3733,204.18,204.01,37.51883237]
[1736279324675,24.24,204.15,204.01,37.51883237]
[1736279324972,20.0,204.11,204.02,37.51883237]
[1736279325356,20.0,204.11,204.01,37.51883237]
[1736279325678,20.0,204.11,203.99,37.51883237]
[1736279325885,23.776884,204.1,203.95,37.51883237]
[1736279326175,20.0,204.07,203.94,43.72703237]
[1736279326373,20.0,204.07,203.96,37.51883237]
[1736279326959,23.776884,204.06,203.95,37.51883237]
[1736279327273,20.0,204.12,203.94,6.2082]
[1736279327459,23.776884,204.03,203.94,6.2082]
[1736279327663,20.0,204.0,203.94,6.2082]
[1736279328478,20.0,204.0,203.92,1.591]
[1736279329377,20.0,204.0,203.92,39.10983237]
[1736279329580,20.0,204.0,203.92,1.591]
[1736279330074,5.0,204.13,203.92,39.10983237]
[1736279330283,20.0,204.12,203.94,37.51883237]
[1736279330581,20.0,204.12,203.92,39.10983237]
[1736279330782,20.0,204.02,203.93,37.51883237]
[1736279331279,20.0,204.02,203.92,39.10983237]
[1736279332281,4.24,204.11,203.97,37.51883237]
[1736279332451,4.24,204.11,203.96,37.51883237]
[1736279332984,20.0,204.07,203.96,37.51883237]
[1736279334970,20.0,204.07,203.97,37.51883237]
[1736279335169,20.0,204.07,203.95,37.51883237]
[1736279335371,20.0,204.07,203.96,37.51883237]
[1736279336565,20.0,204.07,203.97,37.51883237]
[1736279336763,20.0,204.07,203.99,37.51883237]
[1736279337686,1.3733,204.18,204.01,37.51883237]
[1736279337861,4.02,204.17,204.0,37.51883237]
[1736279338361,20.0,204.17,204.01,37.51883237]
[1736279338565,4.02,204.16,204.01,37.51883237]
[1736279338984,20.0,204.12,204.02,37.51883237]
[1736279339188,20.0,204.12,204.01,37.51883237]
[1736279339363,20.0,204.12,203.99,6.1244]
[1736279339364,20.0,204.12,204.0,37.51883237]
[1736279339886,20.0,204.12,204.01,37.51883237]
[1736279340084,20.0,204.12,204.02,37.51883237]
[1736279340382,23.776884,204.11,203.99,43.64323237]
[1736279340589,20.0,204.08,203.99,6.1244]
[1736279340884,20.0,204.08,204.02,37.51883237]
[1736279341081,20.0,204.15,204.01,37.51883237]
[1736279341285,20.0,204.13,204.02,37.51883237]
[1736279341868,20.0,204.13,204.03,37.51883237]
[1736279342077,20.0,204.15,204.03,37.51883237]
[1736279342268,20.0,204.15,204.02,37.51883237]
[1736279342467,1.3733,204.18,203.99,6.1244]
[1736279342468,43.776884,204.14,203.99,6.1244]
[1736279342683,43.776884,204.14,204.02,37.51883237]
[1736279342884,20.0,204.14,204.03,37.51883237]
[1736279343182,20.0,204.14,204.02,37.51883237]
[1736279343689,20.0,204.14,204.03,37.51883237]
[1736279343991,20.0,204.14,204.04,37.51883237]
[1736279344500,1.3733,204.18,204.06,37.51883237]
[1736279344685,21.3733,204.18,204.04,37.51883237]
[1736279344896,20.0,204.14,204.05,37.51883237]
[1736279345192,23.776884,204.17,204.05,67.51883237]
[1736279345490,20.0,204.14,204.05,53.06892089]
[1736279345792,20.0,204.14,204.06,23.06892089]
[1736279346005,5.3933,204.23,204.09,23.06892089]
[1736279346176,1.3733,204.23,204.08,23.06892089]
[1736279346489,1.3733,204.23,204.03,13.8994]
[1736279346490,20.0,204.17,204.03,24.71552089]
[1736279346874,20.0,204.13,204.03,24.71552089]
[1736279347169,20.0,204.13,204.04,23.06892089]
[1736279347396,20.0,204.13,204.05,23.06892089]
[1736279348199,20.0,204.13,204.04,23.06892089]
[1736279348569,20.0,204.13,204.05,23.06892089]
[1736279348770,24.02,204.2,204.07,23.06892089]
[1736279348977,24.02,204.2,204.05,23.06892089]
[1736279349173,24.02,204.2,204.03,24.71552089]
[1736279349381,24.02,204.2,204.04,23.06892089]
[1736279349577,24.02,204.2,204.03,24.71552089]
[1736279350088,43.776884,204.19,204.04,23.06892089]
[1736279350300,43.776884,204.19,204.06,23.06892089]
[1736279350477,43.776884,204.19,204.05,23.06892089]
[1736279351013,24.02,204.2,204.06,46.84580489]
[1736279351177,4.02,204.2,204.04,23.776884]
[1736279351369,1.3733,204.23,204.07,23.06892089]
[1736279351571,20.0,204.19,204.08,23.06892089]
[1736279351803,1.3733,204.23,204.09,23.06892089]
[1736279352685,20.0,204.21,204.09,23.06892089]
[1736279353184,20.0,204.21,204.07,23.06892089]
[1736279353615,20.0,204.21,204.05,23.06892089]
[1736279353903,20.0,204.21,204.06,23.06892089]
[1736279354105,23.776884,204.2,204.06,23.06892089]
[1736279354305,20.0,204.21,204.07,23.06892089]
[1736279354485,20.0,204.17,204.07,23.06892089]
[1736279354684,20.0,204.17,204.09,23.06892089]
[1736279355094,20.0,204.21,204.09,23.06892089]
[1736279355310,20.0,204.21,204.08,23.06892089]
[1736279355713,20.0,204.21,204.07,23.06892089]
[1736279356012,20.0,204.21,204.05,23.06892089]
[1736279356221,20.0,204.17,204.06,23.06892089]